[Event "Titled Tuesday Blitz December 27 Early 2022"]
[White "Firouzja, Alireza"]
[Black "Bluebaum, Matthias"]
[WhiteFideId "12573981"]
[BlackFideId "24651516"]
[WhiteElo "2785"]
[BlackElo "2669"]
[Result "1/2-1/2"]
[Round "09"]
[TimeControl "180+2"]
[Date "2022.12.27"]
[WhiteClock "0:00:02"]
[BlackClock "0:00:07"]

1. e4 {[%clk 0:03:00]}  e6 {[%clk 0:03:00]} 2. d4 {[%clk 0:03:01]}  d5 {[%clk 0:03:00]} 3. e5 {[%clk 0:03:01]}  c5 {[%clk 0:03:01]} 4. c3 {[%clk 0:03:02]}  Nc6 {[%clk 0:03:02]} 5. Nf3 {[%clk 0:03:02]}  Nge7 {[%clk 0:03:02]} 6. Na3 {[%clk 0:02:58]}  Bd7 {[%clk 0:03:02]} 7. Nc2 {[%clk 0:02:56]}  Qa5 {[%clk 0:03:02]} 8. a3 {[%clk 0:02:49]}  Nxd4 {[%clk 0:02:57]} 9. Ncxd4 {[%clk 0:02:40]}  cxd4 {[%clk 0:02:58]} 10. b4 {[%clk 0:02:30]}  Qb6 {[%clk 0:02:56]} 11. cxd4 {[%clk 0:02:27]}  Bb5 {[%clk 0:02:55]} 12. Bd3 {[%clk 0:02:25]}  Qa6 {[%clk 0:02:42]} 13. Bc2 {[%clk 0:02:01]}  Rc8 {[%clk 0:02:28]} 14. a4 {[%clk 0:01:31]}  Nf5 {[%clk 0:01:59]} 15. Bd2 {[%clk 0:01:27]}  Be2 {[%clk 0:01:39]} 16. Qxe2 {[%clk 0:01:27]}  Qxe2+ {[%clk 0:01:39]} 17. Kxe2 {[%clk 0:01:27]}  Rxc2 {[%clk 0:01:40]} 18. Kd3 {[%clk 0:01:27]}  Rc8 {[%clk 0:01:17]} 19. Rhc1 {[%clk 0:01:13]}  Rxc1 {[%clk 0:01:14]} 20. Rxc1 {[%clk 0:01:14]}  Kd7 {[%clk 0:01:15]} 21. g4 {[%clk 0:01:12]}  Nh6 {[%clk 0:01:14]} 22. h3 {[%clk 0:01:11]}  Be7 {[%clk 0:01:13]} 23. b5 {[%clk 0:01:09]}  Rf8 {[%clk 0:01:07]} 24. Ne1 {[%clk 0:00:35]}  Ng8 {[%clk 0:00:53]} 25. f4 {[%clk 0:00:35]}  h5 {[%clk 0:00:41]} 26. Ng2 {[%clk 0:00:27]}  f6 {[%clk 0:00:27]} 27. Ke2 {[%clk 0:00:10]}  hxg4 {[%clk 0:00:23]} 28. hxg4 {[%clk 0:00:11]}  fxe5 {[%clk 0:00:23]} 29. fxe5 {[%clk 0:00:09]}  Nh6 {[%clk 0:00:24]} 30. Bxh6 {[%clk 0:00:03]}  gxh6 {[%clk 0:00:24]} 31. Rh1 {[%clk 0:00:02]}  Bg5 {[%clk 0:00:25]} 32. Rf1 {[%clk 0:00:02]}  Rxf1 {[%clk 0:00:20]} 33. Kxf1 {[%clk 0:00:03]}  Kc7 {[%clk 0:00:21]} 34. Ke2 {[%clk 0:00:02]}  Kb6 {[%clk 0:00:21]} 35. Kf3 {[%clk 0:00:01]}  Ka5 {[%clk 0:00:20]} 36. Nf4 {[%clk 0:00:01]}  Bxf4 {[%clk 0:00:17]} 37. Kxf4 {[%clk 0:00:02]}  Kxa4 {[%clk 0:00:18]} 38. g5 {[%clk 0:00:03]}  hxg5+ {[%clk 0:00:19]} 39. Kxg5 {[%clk 0:00:04]}  Kxb5 {[%clk 0:00:14]} 40. Kf6 {[%clk 0:00:04]}  a5 {[%clk 0:00:09]} 41. Kxe6 {[%clk 0:00:05]}  Kc4 {[%clk 0:00:10]} 42. Kd6 {[%clk 0:00:02]}  a4 {[%clk 0:00:11]} 43. e6 {[%clk 0:00:03]}  a3 {[%clk 0:00:12]} 44. e7 {[%clk 0:00:04]}  a2 {[%clk 0:00:13]} 45. e8=Q {[%clk 0:00:05]}  a1=Q {[%clk 0:00:14]} 46. Qc8+ {[%clk 0:00:05]}  Kd3 {[%clk 0:00:10]} 47. Qf5+ {[%clk 0:00:05]}  Kc3 {[%clk 0:00:10]} 48. Qxd5 {[%clk 0:00:04]}  Qa6+ {[%clk 0:00:08]} 49. Ke5 {[%clk 0:00:04]}  b5 {[%clk 0:00:08]} 50. Qc5+ {[%clk 0:00:04]}  Kd3 {[%clk 0:00:07]} 51. d5 {[%clk 0:00:04]}  Qa1+ {[%clk 0:00:07]} 52. Ke6 {[%clk 0:00:05]}  Qe1+ {[%clk 0:00:07]} 53. Kd7 {[%clk 0:00:05]}  b4 {[%clk 0:00:06]} 54. d6 {[%clk 0:00:04]}  b3 {[%clk 0:00:07]} 55. Qf5+ {[%clk 0:00:02]}  Kc4 {[%clk 0:00:05]} 56. Qf7+ {[%clk 0:00:02]}  Kc3 {[%clk 0:00:05]} 57. Qf6+ {[%clk 0:00:02]}  Kc4 {[%clk 0:00:06]} 58. Qf7+ {[%clk 0:00:02]}  Kc3 {[%clk 0:00:06]} 59. Qf6+ {[%clk 0:00:02]}  Kc4 {[%clk 0:00:07]} 60. Qf7+ {[%clk 0:00:02]} 1/2-1/2


[Site "https://www.chess.com"]

[Event "Titled Tuesday Blitz December 27 Early 2022"]
[White "Flis, Pawel"]
[Black "Jenkins, Drake"]
[WhiteFideId "1112864"]
[BlackFideId "2022397"]
[WhiteElo "1879"]
[BlackElo "2130"]
[Result "0-1"]
[Round "09"]
[TimeControl "180+2"]
[Date "2022.12.27"]
[WhiteClock "0:00:01"]
[BlackClock "0:00:10"]

1. e4 {[%clk 0:03:00]}  c5 {[%clk 0:02:58]} 2. Nf3 {[%clk 0:02:58]}  g6 {[%clk 0:02:58]} 3. d4 {[%clk 0:02:54]}  cxd4 {[%clk 0:02:59]} 4. Nxd4 {[%clk 0:02:54]}  Nf6 {[%clk 0:02:59]} 5. Nc3 {[%clk 0:02:46]}  Nc6 {[%clk 0:02:59]} 6. Be3 {[%clk 0:02:44]}  Bg7 {[%clk 0:02:59]} 7. Nxc6 {[%clk 0:02:42]}  bxc6 {[%clk 0:02:56]} 8. e5 {[%clk 0:02:42]}  Ng8 {[%clk 0:02:49]} 9. Bf4 {[%clk 0:02:39]}  h5 {[%clk 0:02:22]} 10. Qd2 {[%clk 0:02:27]}  Nh6 {[%clk 0:02:19]} 11. O-O-O {[%clk 0:02:23]}  Ng4 {[%clk 0:02:13]} 12. Re1 {[%clk 0:02:12]}  Qa5 {[%clk 0:02:10]} 13. Qe2 {[%clk 0:01:44]}  Qb4 {[%clk 0:01:48]} 14. g3 {[%clk 0:01:35]}  Rb8 {[%clk 0:01:41]} 15. Nd1 {[%clk 0:01:26]}  Ba6 {[%clk 0:01:03]} 16. Qd2 {[%clk 0:01:04]}  Bxf1 {[%clk 0:00:56]} 17. Qxb4 {[%clk 0:00:53]}  Rxb4 {[%clk 0:00:53]} 18. Rexf1 {[%clk 0:00:54]}  Bxe5 {[%clk 0:00:44]} 19. Bxe5 {[%clk 0:00:52]}  Nxe5 {[%clk 0:00:45]} 20. f4 {[%clk 0:00:50]}  Ng4 {[%clk 0:00:39]} 21. h3 {[%clk 0:00:49]}  Nf6 {[%clk 0:00:38]} 22. Re1 {[%clk 0:00:46]}  e6 {[%clk 0:00:34]} 23. a3 {[%clk 0:00:37]}  Rb6 {[%clk 0:00:28]} 24. Nc3 {[%clk 0:00:35]}  d5 {[%clk 0:00:27]} 25. Na4 {[%clk 0:00:34]}  Rb5 {[%clk 0:00:28]} 26. Nc3 {[%clk 0:00:27]}  Rb7 {[%clk 0:00:28]} 27. Na4 {[%clk 0:00:27]}  Ne4 {[%clk 0:00:27]} 28. g4 {[%clk 0:00:21]}  Ke7 {[%clk 0:00:24]} 29. f5 {[%clk 0:00:20]}  hxg4 {[%clk 0:00:22]} 30. hxg4 {[%clk 0:00:20]}  Rxh1 {[%clk 0:00:19]} 31. Rxh1 {[%clk 0:00:19]}  exf5 {[%clk 0:00:19]} 32. gxf5 {[%clk 0:00:19]}  gxf5 {[%clk 0:00:19]} 33. Re1 {[%clk 0:00:19]}  Kf6 {[%clk 0:00:17]} 34. Rf1 {[%clk 0:00:16]}  Rb8 {[%clk 0:00:16]} 35. b4 {[%clk 0:00:15]}  Ke5 {[%clk 0:00:16]} 36. Kb2 {[%clk 0:00:14]}  a5 {[%clk 0:00:15]} 37. c3 {[%clk 0:00:14]}  axb4 {[%clk 0:00:15]} 38. axb4 {[%clk 0:00:14]}  Rg8 {[%clk 0:00:15]} 39. Rh1 {[%clk 0:00:10]}  f4 {[%clk 0:00:14]} 40. Rh7 {[%clk 0:00:09]}  f6 {[%clk 0:00:12]} 41. Kb3 {[%clk 0:00:09]}  f3 {[%clk 0:00:12]} 42. Nb2 {[%clk 0:00:09]}  f2 {[%clk 0:00:12]} 43. Nd3+ {[%clk 0:00:09]}  Kd6 {[%clk 0:00:11]} 44. Nxf2 {[%clk 0:00:07]}  Nxf2 {[%clk 0:00:11]} 45. Rf7 {[%clk 0:00:05]}  Ne4 {[%clk 0:00:12]} 46. Rb7 {[%clk 0:00:04]}  Rf8 {[%clk 0:00:11]} 47. Rh7 {[%clk 0:00:02]}  f5 {[%clk 0:00:11]} 48. Rh3 {[%clk 0:00:03]}  f4 {[%clk 0:00:10]} 49. Kc2 {[%clk 0:00:02]}  f3 {[%clk 0:00:10]} 50. Rh1 {[%clk 0:00:02]}  f2 {[%clk 0:00:10]} 51. Rf1 {[%clk 0:00:01]}  Ng3 {[%clk 0:00:10]} 0-1


[Site "https://www.chess.com"]

[Event "Titled Tuesday Blitz December 27 Early 2022"]
[White "Forgacs, Attila Jr."]
[Black "Moral Garcia, Serafin"]
[WhiteFideId "773654"]
[BlackFideId "2201925"]
[WhiteElo "2264"]
[BlackElo "2238"]
[Result "1/2-1/2"]
[Round "09"]
[TimeControl "180+2"]
[Date "2022.12.27"]
[WhiteClock "0:00:06"]
[BlackClock "0:00:15"]

1. e4 {[%clk 0:03:00]}  e5 {[%clk 0:02:56]} 2. Nf3 {[%clk 0:03:01]}  Nc6 {[%clk 0:02:56]} 3. Bb5 {[%clk 0:03:01]}  a6 {[%clk 0:02:56]} 4. Ba4 {[%clk 0:03:02]}  Nf6 {[%clk 0:02:56]} 5. O-O {[%clk 0:03:02]}  Be7 {[%clk 0:02:55]} 6. Re1 {[%clk 0:03:03]}  b5 {[%clk 0:02:55]} 7. Bb3 {[%clk 0:03:03]}  d6 {[%clk 0:02:56]} 8. c3 {[%clk 0:03:04]}  O-O {[%clk 0:02:57]} 9. h3 {[%clk 0:03:04]}  Na5 {[%clk 0:02:57]} 10. Bc2 {[%clk 0:03:04]}  c5 {[%clk 0:02:57]} 11. d4 {[%clk 0:03:05]}  Nd7 {[%clk 0:02:56]} 12. Nbd2 {[%clk 0:03:01]}  exd4 {[%clk 0:02:55]} 13. cxd4 {[%clk 0:03:01]}  Nc6 {[%clk 0:02:55]} 14. d5 {[%clk 0:02:58]}  Nce5 {[%clk 0:02:55]} 15. Nh2 {[%clk 0:02:56]}  Ng6 {[%clk 0:02:55]} 16. Ndf1 {[%clk 0:02:54]}  Bg5 {[%clk 0:02:55]} 17. Ng3 {[%clk 0:02:50]}  Re8 {[%clk 0:02:43]} 18. Rf1 {[%clk 0:02:35]}  Bf4 {[%clk 0:02:30]} 19. Bxf4 {[%clk 0:02:19]}  Nxf4 {[%clk 0:02:29]} 20. Ne2 {[%clk 0:02:20]}  Qg5 {[%clk 0:02:22]} 21. Nxf4 {[%clk 0:02:19]}  Qxf4 {[%clk 0:02:21]} 22. Qg4 {[%clk 0:01:55]}  Qxg4 {[%clk 0:02:19]} 23. Nxg4 {[%clk 0:01:56]}  c4 {[%clk 0:02:16]} 24. f4 {[%clk 0:01:51]}  Nc5 {[%clk 0:02:13]} 25. Rae1 {[%clk 0:01:51]}  Bxg4 {[%clk 0:02:09]} 26. hxg4 {[%clk 0:01:52]}  f6 {[%clk 0:02:09]} 27. Kf2 {[%clk 0:01:42]}  Kf7 {[%clk 0:01:48]} 28. Ke3 {[%clk 0:01:41]}  Ra7 {[%clk 0:01:41]} 29. Kd4 {[%clk 0:01:37]}  Rae7 {[%clk 0:01:37]} 30. Re2 {[%clk 0:01:18]}  h6 {[%clk 0:01:35]} 31. g5 {[%clk 0:01:04]}  Rh8 {[%clk 0:01:16]} 32. e5 {[%clk 0:00:46]}  hxg5 {[%clk 0:01:01]} 33. e6+ {[%clk 0:00:22]}  Ke8 {[%clk 0:00:59]} 34. Bg6+ {[%clk 0:00:18]}  Kd8 {[%clk 0:00:58]} 35. fxg5 {[%clk 0:00:19]}  fxg5 {[%clk 0:00:49]} 36. Ref2 {[%clk 0:00:19]}  Rh4+ {[%clk 0:00:35]} 37. Kc3 {[%clk 0:00:18]}  Na4+ {[%clk 0:00:19]} 38. Kc2 {[%clk 0:00:18]}  Nb6 {[%clk 0:00:19]} 39. Rf8+ {[%clk 0:00:18]}  Kc7 {[%clk 0:00:20]} 40. R1f7 {[%clk 0:00:19]}  Nxd5 {[%clk 0:00:20]} 41. Rxe7+ {[%clk 0:00:18]}  Nxe7 {[%clk 0:00:20]} 42. Rf7 {[%clk 0:00:19]}  Kd8 {[%clk 0:00:18]} 43. Rf8+ {[%clk 0:00:19]}  Kc7 {[%clk 0:00:18]} 44. Rf7 {[%clk 0:00:20]}  Kd8 {[%clk 0:00:17]} 45. Rf8+ {[%clk 0:00:06]}  Kc7 {[%clk 0:00:15]} 1/2-1/2


[Site "https://www.chess.com"]

[Event "Titled Tuesday Blitz December 27 Early 2022"]
[White "Garcia Ramos, Daniel"]
[Black "Ozen, Bahadir"]
[WhiteFideId "32010311"]
[BlackFideId "6337058"]
[WhiteElo "2442"]
[BlackElo "2369"]
[Result "0-1"]
[Round "09"]
[TimeControl "180+2"]
[Date "2022.12.27"]
[WhiteClock "0:00:04"]
[BlackClock "0:00:08"]

1. d4 {[%clk 0:02:58]}  d6 {[%clk 0:02:59]} 2. c4 {[%clk 0:02:51]}  Nf6 {[%clk 0:02:59]} 3. Nc3 {[%clk 0:02:51]}  Nbd7 {[%clk 0:03:00]} 4. g3 {[%clk 0:02:51]}  e5 {[%clk 0:02:58]} 5. Nf3 {[%clk 0:02:51]}  Be7 {[%clk 0:02:58]} 6. Bg2 {[%clk 0:02:51]}  O-O {[%clk 0:02:58]} 7. O-O {[%clk 0:02:52]}  Re8 {[%clk 0:02:58]} 8. e4 {[%clk 0:02:50]}  c6 {[%clk 0:02:57]} 9. h3 {[%clk 0:02:50]}  a6 {[%clk 0:02:57]} 10. a4 {[%clk 0:02:48]}  a5 {[%clk 0:02:55]} 11. Be3 {[%clk 0:02:48]}  exd4 {[%clk 0:02:52]} 12. Nxd4 {[%clk 0:02:47]}  Bf8 {[%clk 0:02:53]} 13. Qc2 {[%clk 0:02:45]}  Nc5 {[%clk 0:02:53]} 14. Rad1 {[%clk 0:02:45]}  Qb6 {[%clk 0:02:52]} 15. Kh2 {[%clk 0:02:42]}  Bd7 {[%clk 0:02:38]} 16. Rd2 {[%clk 0:02:39]}  Rad8 {[%clk 0:02:35]} 17. Rfd1 {[%clk 0:02:35]}  Bc8 {[%clk 0:02:35]} 18. b3 {[%clk 0:02:29]}  g6 {[%clk 0:02:31]} 19. Rb1 {[%clk 0:02:20]}  Qc7 {[%clk 0:02:11]} 20. Nde2 {[%clk 0:02:18]}  h6 {[%clk 0:01:49]} 21. Rbd1 {[%clk 0:02:18]}  Qb6 {[%clk 0:01:48]} 22. Nc1 {[%clk 0:02:18]}  Qc7 {[%clk 0:01:46]} 23. Bd4 {[%clk 0:02:05]}  Nfd7 {[%clk 0:01:44]} 24. N3e2 {[%clk 0:02:00]}  Ne6 {[%clk 0:01:40]} 25. Ba1 {[%clk 0:01:58]}  Ndc5 {[%clk 0:01:21]} 26. f4 {[%clk 0:01:58]}  Ng7 {[%clk 0:01:14]} 27. Bf6 {[%clk 0:01:47]}  Be7 {[%clk 0:01:14]} 28. Bb2 {[%clk 0:01:45]}  Bf8 {[%clk 0:01:12]} 29. Nd4 {[%clk 0:01:11]}  f5 {[%clk 0:01:05]} 30. exf5 {[%clk 0:01:06]}  Bxf5 {[%clk 0:01:04]} 31. Nxf5 {[%clk 0:00:58]}  Nxf5 {[%clk 0:01:04]} 32. Re2 {[%clk 0:00:32]}  Qf7 {[%clk 0:00:38]} 33. Rde1 {[%clk 0:00:31]}  Rxe2 {[%clk 0:00:38]} 34. Rxe2 {[%clk 0:00:31]}  Bg7 {[%clk 0:00:38]} 35. Bxg7 {[%clk 0:00:30]}  Qxg7 {[%clk 0:00:38]} 36. Qd2 {[%clk 0:00:27]}  Qd4 {[%clk 0:00:36]} 37. Qxa5 {[%clk 0:00:24]}  Rf8 {[%clk 0:00:31]} 38. Qd2 {[%clk 0:00:23]}  Qf6 {[%clk 0:00:24]} 39. a5 {[%clk 0:00:22]}  h5 {[%clk 0:00:24]} 40. b4 {[%clk 0:00:22]}  Nd7 {[%clk 0:00:15]} 41. Nd3 {[%clk 0:00:14]}  h4 {[%clk 0:00:14]} 42. g4 {[%clk 0:00:14]}  Ng3 {[%clk 0:00:14]} 43. Rf2 {[%clk 0:00:14]}  Qd4 {[%clk 0:00:14]} 44. Nb2 {[%clk 0:00:11]}  Qf6 {[%clk 0:00:09]} 45. b5 {[%clk 0:00:10]}  Nc5 {[%clk 0:00:08]} 46. bxc6 {[%clk 0:00:09]}  bxc6 {[%clk 0:00:09]} 47. Bxc6 {[%clk 0:00:09]}  Kh7 {[%clk 0:00:09]} 48. Qd5 {[%clk 0:00:07]}  Nce4 {[%clk 0:00:08]} 49. Rf3 {[%clk 0:00:04]}  Qxb2+ {[%clk 0:00:08]} 0-1


[Site "https://www.chess.com"]

[Event "Titled Tuesday Blitz December 27 Early 2022"]
[White "Gerbelli Neto, Eduardo"]
[Black "Estrada Nieto, Julian"]
[WhiteFideId "2103281"]
[BlackFideId "5101018"]
[WhiteElo "2114"]
[BlackElo "2215"]
[Result "1-0"]
[Round "09"]
[TimeControl "180+2"]
[Date "2022.12.27"]
[WhiteClock "0:01:25"]
[BlackClock "0:00:14"]

1. e4 {[%clk 0:03:00]}  e5 {[%clk 0:02:59]} 2. Nf3 {[%clk 0:03:00]}  Nc6 {[%clk 0:03:00]} 3. d4 {[%clk 0:03:00]}  exd4 {[%clk 0:02:59]} 4. Nxd4 {[%clk 0:03:00]}  Nf6 {[%clk 0:03:00]} 5. Nc3 {[%clk 0:03:00]}  Bb4 {[%clk 0:02:59]} 6. Nxc6 {[%clk 0:03:00]}  bxc6 {[%clk 0:02:59]} 7. Bd3 {[%clk 0:03:01]}  d5 {[%clk 0:02:59]} 8. e5 {[%clk 0:03:00]}  Ng4 {[%clk 0:02:58]} 9. Bf4 {[%clk 0:02:59]}  f6 {[%clk 0:02:48]} 10. h3 {[%clk 0:02:46]}  Nxe5 {[%clk 0:02:44]} 11. Bxe5 {[%clk 0:02:46]}  fxe5 {[%clk 0:02:45]} 12. Qh5+ {[%clk 0:02:45]}  g6 {[%clk 0:02:44]} 13. Qxe5+ {[%clk 0:02:44]}  Qe7 {[%clk 0:02:44]} 14. Qxe7+ {[%clk 0:02:41]}  Kxe7 {[%clk 0:02:45]} 15. O-O {[%clk 0:02:41]}  Bxc3 {[%clk 0:02:37]} 16. bxc3 {[%clk 0:02:41]}  Bf5 {[%clk 0:02:37]} 17. g4 {[%clk 0:02:32]}  Bxd3 {[%clk 0:02:33]} 18. cxd3 {[%clk 0:02:33]}  Rab8 {[%clk 0:02:32]} 19. Rfe1+ {[%clk 0:02:34]}  Kd6 {[%clk 0:02:32]} 20. Re2 {[%clk 0:02:31]}  Rhe8 {[%clk 0:02:30]} 21. Rae1 {[%clk 0:02:31]}  Rxe2 {[%clk 0:02:30]} 22. Rxe2 {[%clk 0:02:32]}  Rb1+ {[%clk 0:02:27]} 23. Kg2 {[%clk 0:02:32]}  Rc1 {[%clk 0:02:25]} 24. c4 {[%clk 0:02:26]}  dxc4 {[%clk 0:02:14]} 25. dxc4 {[%clk 0:02:27]}  Rxc4 {[%clk 0:02:14]} 26. Rd2+ {[%clk 0:02:26]}  Ke6 {[%clk 0:02:08]} 27. Re2+ {[%clk 0:02:25]}  Kd7 {[%clk 0:02:08]} 28. Rd2+ {[%clk 0:02:16]}  Kc8 {[%clk 0:02:08]} 29. Kg3 {[%clk 0:02:07]}  g5 {[%clk 0:02:05]} 30. Re2 {[%clk 0:02:03]}  Rc3+ {[%clk 0:02:04]} 31. f3 {[%clk 0:02:03]}  Ra3 {[%clk 0:01:50]} 32. Re5 {[%clk 0:01:59]}  h6 {[%clk 0:01:50]} 33. Re6 {[%clk 0:01:59]}  Rxa2 {[%clk 0:01:42]} 34. Rxc6 {[%clk 0:01:59]}  a5 {[%clk 0:01:38]} 35. Rxh6 {[%clk 0:01:59]}  Kb7 {[%clk 0:01:34]} 36. Rg6 {[%clk 0:01:57]}  a4 {[%clk 0:01:32]} 37. Rxg5 {[%clk 0:01:57]}  Kb6 {[%clk 0:01:31]} 38. h4 {[%clk 0:01:56]}  Ra1 {[%clk 0:01:31]} 39. h5 {[%clk 0:01:52]}  a3 {[%clk 0:01:31]} 40. Rg8 {[%clk 0:01:49]}  Rg1+ {[%clk 0:01:27]} 41. Kh2 {[%clk 0:01:43]}  a2 {[%clk 0:01:25]} 42. Ra8 {[%clk 0:01:42]}  a1=Q {[%clk 0:01:24]} 43. Rxa1 {[%clk 0:01:42]}  Rxa1 {[%clk 0:01:24]} 44. h6 {[%clk 0:01:43]}  c5 {[%clk 0:01:20]} 45. g5 {[%clk 0:01:43]}  c4 {[%clk 0:00:49]} 46. h7 {[%clk 0:01:43]}  Ra8 {[%clk 0:00:43]} 47. g6 {[%clk 0:01:43]}  c3 {[%clk 0:00:42]} 48. g7 {[%clk 0:01:43]}  c2 {[%clk 0:00:39]} 49. g8=Q {[%clk 0:01:40]}  Rxg8 {[%clk 0:00:31]} 50. hxg8=Q {[%clk 0:01:41]}  c1=Q {[%clk 0:00:32]} 51. Qe6+ {[%clk 0:01:33]}  Kb5 {[%clk 0:00:30]} 52. Qe4 {[%clk 0:01:30]}  Qh6+ {[%clk 0:00:23]} 53. Kg3 {[%clk 0:01:30]}  Qg5+ {[%clk 0:00:22]} 54. Qg4 {[%clk 0:01:28]}  Qe5+ {[%clk 0:00:21]} 55. Qf4 {[%clk 0:01:24]}  Qe1+ {[%clk 0:00:21]} 56. Kg4 {[%clk 0:01:23]}  Kc6 {[%clk 0:00:18]} 57. Qe4+ {[%clk 0:01:22]}  Qxe4+ {[%clk 0:00:18]} 58. fxe4 {[%clk 0:01:23]}  Kd6 {[%clk 0:00:17]} 59. Kf5 {[%clk 0:01:24]}  Ke7 {[%clk 0:00:16]} 60. Ke5 {[%clk 0:01:24]}  Ke8 {[%clk 0:00:15]} 61. Ke6 {[%clk 0:01:24]}  Kf8 {[%clk 0:00:14]} 62. Kd7 {[%clk 0:01:24]}  Kf7 {[%clk 0:00:13]} 63. e5 {[%clk 0:01:24]}  Kg6 {[%clk 0:00:13]} 64. e6 {[%clk 0:01:25]}  Kf5 {[%clk 0:00:14]} 65. e7 {[%clk 0:01:25]} 1-0


[Site "https://www.chess.com"]

[Event "Titled Tuesday Blitz December 27 Early 2022"]
[White "Gurevich, Dmitry"]
[Black "Liyanage, Ranindu Dilshan"]
[WhiteFideId "2000407"]
[BlackFideId "9915834"]
[WhiteElo "2393"]
[BlackElo "2342"]
[Result "1/2-1/2"]
[Round "09"]
[TimeControl "180+2"]
[Date "2022.12.27"]
[WhiteClock "0:00:03"]
[BlackClock "0:00:04"]

1. d4 {[%clk 0:03:00]}  Nf6 {[%clk 0:02:54]} 2. c4 {[%clk 0:03:00]}  e6 {[%clk 0:02:54]} 3. Nc3 {[%clk 0:03:00]}  Bb4 {[%clk 0:02:53]} 4. a3 {[%clk 0:03:00]}  Bxc3+ {[%clk 0:02:53]} 5. bxc3 {[%clk 0:03:00]}  O-O {[%clk 0:02:52]} 6. f3 {[%clk 0:02:56]}  d5 {[%clk 0:02:50]} 7. cxd5 {[%clk 0:02:55]}  Nxd5 {[%clk 0:02:51]} 8. Qd3 {[%clk 0:02:47]}  f5 {[%clk 0:02:11]} 9. e3 {[%clk 0:02:41]}  b6 {[%clk 0:02:08]} 10. Nh3 {[%clk 0:02:36]}  c5 {[%clk 0:02:05]} 11. dxc5 {[%clk 0:02:27]}  bxc5 {[%clk 0:02:06]} 12. c4 {[%clk 0:02:26]}  Nb6 {[%clk 0:02:03]} 13. Qxd8 {[%clk 0:02:25]}  Rxd8 {[%clk 0:02:04]} 14. Bb2 {[%clk 0:02:09]}  Ba6 {[%clk 0:02:03]} 15. Rc1 {[%clk 0:02:08]}  Nc6 {[%clk 0:02:02]} 16. Nf4 {[%clk 0:02:06]}  Re8 {[%clk 0:01:41]} 17. Bc3 {[%clk 0:01:50]}  Bxc4 {[%clk 0:01:31]} 18. Bxc4 {[%clk 0:01:39]}  Nxc4 {[%clk 0:01:32]} 19. Bxg7 {[%clk 0:01:37]}  Nxe3 {[%clk 0:01:25]} 20. Bh6 {[%clk 0:01:24]}  Ne5 {[%clk 0:00:52]} 21. Ke2 {[%clk 0:01:04]}  N3c4 {[%clk 0:00:49]} 22. Nh5 {[%clk 0:01:00]}  Red8 {[%clk 0:00:41]} 23. Rc2 {[%clk 0:00:51]}  Nxa3 {[%clk 0:00:34]} 24. Rxc5 {[%clk 0:00:49]}  Nf7 {[%clk 0:00:35]} 25. Be3 {[%clk 0:00:42]}  Rab8 {[%clk 0:00:34]} 26. Rhc1 {[%clk 0:00:35]}  Rb2+ {[%clk 0:00:32]} 27. Kf1 {[%clk 0:00:34]}  Nb5 {[%clk 0:00:30]} 28. Rc8 {[%clk 0:00:20]}  Nbd6 {[%clk 0:00:16]} 29. Rxd8+ {[%clk 0:00:20]}  Nxd8 {[%clk 0:00:17]} 30. Rc7 {[%clk 0:00:19]}  Rb7 {[%clk 0:00:15]} 31. Rxb7 {[%clk 0:00:16]}  N8xb7 {[%clk 0:00:16]} 32. Bxa7 {[%clk 0:00:15]}  Kf7 {[%clk 0:00:17]} 33. Bd4 {[%clk 0:00:15]}  Nc4 {[%clk 0:00:16]} 34. Kf2 {[%clk 0:00:13]}  e5 {[%clk 0:00:16]} 35. Bc3 {[%clk 0:00:13]}  f4 {[%clk 0:00:16]} 36. Ke2 {[%clk 0:00:12]}  Nbd6 {[%clk 0:00:12]} 37. g4 {[%clk 0:00:11]}  Ke6 {[%clk 0:00:08]} 38. Kd3 {[%clk 0:00:11]}  h6 {[%clk 0:00:08]} 39. Ng7+ {[%clk 0:00:11]}  Kd5 {[%clk 0:00:07]} 40. Nh5 {[%clk 0:00:11]}  Na3 {[%clk 0:00:06]} 41. Nf6+ {[%clk 0:00:10]}  Ke6 {[%clk 0:00:05]} 42. Ne4 {[%clk 0:00:10]}  Nab5 {[%clk 0:00:06]} 43. Nxd6 {[%clk 0:00:09]}  Nxd6 {[%clk 0:00:07]} 44. Bb4 {[%clk 0:00:09]}  Nf7 {[%clk 0:00:06]} 45. h4 {[%clk 0:00:07]}  Kd5 {[%clk 0:00:07]} 46. Bf8 {[%clk 0:00:06]}  Ke6 {[%clk 0:00:04]} 47. Ke4 {[%clk 0:00:05]}  Kf6 {[%clk 0:00:05]} 48. Kd5 {[%clk 0:00:05]}  Kg6 {[%clk 0:00:02]} 49. h5+ {[%clk 0:00:04]}  Kf6 {[%clk 0:00:02]} 50. Ke4 {[%clk 0:00:03]}  Ng5+ {[%clk 0:00:03]} 51. Kd3 {[%clk 0:00:02]}  Nxf3 {[%clk 0:00:03]} 52. Bxh6 {[%clk 0:00:02]}  Nh2 {[%clk 0:00:04]} 53. Ke4 {[%clk 0:00:02]}  Nxg4 {[%clk 0:00:04]} 54. Bxf4 {[%clk 0:00:03]}  Nf2+ {[%clk 0:00:02]} 55. Kf3 {[%clk 0:00:02]}  exf4 {[%clk 0:00:03]} 56. Kxf4 {[%clk 0:00:03]}  Kg7 {[%clk 0:00:03]} 57. h6+ {[%clk 0:00:03]}  Kxh6 {[%clk 0:00:04]} 1/2-1/2


[Site "https://www.chess.com"]